Cogmind - Beta 14 @@@ ROGUE MODE // 2024.08.14 @ 18:55:13 Player: N.W.L Result: Destroyed by Y-54 Guardian with Flak Gun Performance ------------- Evolutions (0) 0 Regions Visited (3) 600 Robots Destroyed (30) 150 Value Destroyed (668) 668 Prototype IDs (0) 0 Alien Tech Used (0) 0 Bonus (0) 0 TOTAL SCORE: 1418 Bonus ------- None Cogmind --------- Core Integrity 0/250 Matter 63/300 Energy 200/200 System Corruption 0% Temperature Cool (55) Movement Treading (160) Location -7/Recycling Parts ------- > --- POWER (1) -------- Subdweller Power Source > --- PROPULSION (2) --- Light Treads Light Treads > --- UTILITY (2) ------ Large Storage Unit Seismic Detector > --- WEAPON (2) ------- Subdweller Machine Gun Advanced Assault Cannon > --- INVENTORY (15) --- Light Treads Light Treads Light Treads Disposable Heat Sink Subdweller Optics Sensor Array Scrap Shield Hacking Suite Grenade Launcher Datajack Mining Laser Shrapnel Trap Scrap Shield Fragment (47) Peak State ------------ > --- POWER ------------ Subdweller Power Source > --- PROPULSION ------- Light Treads Light Treads > --- UTILITY ---------- Large Storage Unit Seismic Detector > --- WEAPON ----------- Subdweller Machine Gun Advanced Assault Cannon > --- INVENTORY -------- Light Treads Light Treads Light Treads Disposable Heat Sink Subdweller Optics Sensor Array Scrap Shield Hacking Suite Grenade Launcher Datajack Mining Laser Shrapnel Trap Scrap Shield Fragment [Rating: 14] Favorites ----------- Power Ion Engine Engine Ion Engine Propulsion Light Treads Treads Light Treads Utility Seismic Detector Device Seismic Detector Storage Large Storage Unit Weapon EM Pulse Gun Energy Gun EM Pulse Gun Ballistic Gun Assault Rifle Ballistic Cannon Advanced Assault Cannon Launcher Grenade Launcher Special Weapon Mining Laser Build | -11 -10 -10 -7 ------- Run | Yrd Mat Sub Rec Slots Evolved . | . . . . Power . | . . . . Propulsion . | . . . . Utility . | . . . . Weapon . | . . . . Parts Attached 30 | 8 4 14 4 Power 4 | 2 . 2 . Engine 4 | 2 . 2 . Core . | . . . . Reactor . | . . . . Propulsion 4 | 2 . 2 . Treads 4 | 2 . 2 . Leg . | . . . . Wheel . | . . . . Hover . | . . . . Flight . | . . . . Utility 3 | 2 1 . . Device 1 | 1 . . . Storage 2 | 1 1 . . Processor . | . . . . Hackware . | . . . . Protection . | . . . . Artifact . | . . . . Weapon 19 | 2 3 10 4 Energy Gun 5 | 2 2 1 . Energy Cannon . | . . . . Ballistic Gun 6 | . . 4 2 Ballistic Cannon 1 | . . . 1 Launcher 5 | . 1 4 . Special Weapon 2 | . . 1 1 Impact Weapon . | . . . . Slashing Weapon . | . . . . Piercing Weapon . | . . . . Special Melee Weapon . | . . . . Unidentified Prototypes . | . . . . Parts Lost 2 | . . 2 . Power 1 | . . 1 . Propulsion . | . . . . Utility . | . . . . Weapon 1 | . . 1 . Highest Loss Streak 1 | . . 1 . To Critical Strikes . | . . . . Average Slot Usage (%) 99 | . 100 98 100 Engine 13 | . 14 13 14 Treads 28 | . 28 28 28 Device 14 | . 14 14 14 Storage 14 | . 14 14 14 Energy Gun 21 | . 26 17 12 Ballistic Gun 2 | . . 6 4 Launcher 1 | . 1 1 . Special Weapon 1 | . . 1 8 Peak Build Rating 14 | 7 8 11 14 Average Rating 8 | 5 7 9 10 On Entrance 6 | . 7 8 10 Naked Turns . | . . . . Heaviest Build 36 | 14 30 36 36 Greatest Support 40 | 40 40 40 40 Greatest Overweight (x) . | . . . . Average Overweight (x) . | . . . . Largest Inventory Capacity 15 | 8 15 15 15 Average Capacity 12 | 6 11 15 15 Most Carried 15 | 2 15 15 14 Average Carried 11 | 1 10 14 14 Final Capacity 15 | 8 15 15 15 Final Carried 15 | 2 15 14 14 Class Distribution -------------------- 100% | Mutant Dominant Class ---------------- Mutant | -10/Materials Mutant | -10/Subcaves Mutant | -7/Recycling Resources | -11 -10 -10 -7 ----------- Run | Yrd Mat Sub Rec Matter Collected 555 | 280 68 207 . Remotely . | . . . . Salvage Created 721 | 132 289 245 55 Parts 61 | 10 24 25 2 Haulers Intercepted . | . . . . Recyclers Shooed 1 | . 1 . . Parts Field Recycled . | . . . . Retrieved Matter . | . . . . Parts Self-Destructed 15 | . . 15 . Prevented . | . . . . Kills | -11 -10 -10 -7 ------- Run | Yrd Mat Sub Rec Combat Hostiles Destroyed 18 | . 8 10 . Guns 6 | . 4 2 . AOE 11 | . 4 7 . Classes Destroyed 8 | 2 4 2 . Tunneler 5 | 4 1 . . Recycler 2 | 1 . . 1 Operator 2 | . 2 . . Turret 2 | . . 2 . Watcher 1 | . 1 . . Swarmer 7 | . 3 4 . Grunt 5 | . 5 . . Subdweller 6 | . . 6 . Best Kill Streak 4 | 4 4 4 1 Combat Bots Only 4 | . 3 4 . Max Kills in Single Turn 2 | 1 2 2 1 Gunslinging . | . . . . Exploded 2 | . 2 2 . Melee . | . . . . Uniques/NPCs Destroyed . | . . . . Combat | -11 -10 -10 -7 -------- Run | Yrd Mat Sub Rec Hostile Shots Fired 120 | . 33 51 36 Missed 42 | . 12 19 11 Damage Taken 1099 | 32 297 596 174 Core 254 | 16 44 156 38 Absorbed by Shields . | . . . . Core Remaining (%) 93 | 93 . . . Volleys Fired 89 | 12 26 42 9 Largest 2 | 2 2 2 2 Hottest 100 | 80 80 100 100 Shots Fired 128 | 17 49 52 10 Gun 89 | 17 46 25 1 Cannon 5 | . . . 5 Launcher 20 | . 3 17 . Special 14 | . . 10 4 Kinetic 18 | . . 12 6 Thermal 31 | 12 2 13 4 Explosive 15 | . 3 12 . Electromagnetic 64 | 5 44 15 . Robot Hit Streak 26 | 5 14 25 26 Robot Miss Streak 6 | 2 6 . 1 Penetration Max . | . . . . Secondary Targets 1 | . 1 . . Max Gunslinging Chain 1 | . 1 . . Shots Hit Robots 65 | 11 26 24 4 Core Hits 46 | 5 17 22 2 Critical Kills . | . . . . Critical Parts Destroyed . | . . . . Critical Strikes . | . . . . Melee Attacks . | . . . . Impact . | . . . . Slashing . | . . . . Piercing . | . . . . Sneak Attacks . | . . . . Combat Hostiles . | . . . . Follow-up Attacks . | . . . . Damage Inflicted 2145 | 173 751 1097 124 Guns 778 | 130 402 230 16 Cannons 108 | . . . 108 Explosions 1258 | 43 348 867 . Melee . | . . . . Ramming 1 | . 1 . . Kinetic 559 | . . 435 124 Thermal 279 | 121 70 88 . Explosive 682 | . 278 404 . Electromagnetic 624 | 52 402 170 . Impact . | . . . . Slashing . | . . . . Piercing . | . . . . Highest Corruption . | . . . . Average Corruption . | . . . . Corruption Purged . | . . . . Corruption Blocked . | . . . . Overload Shots . | . . . . Overflow Damage 87 | . 34 53 . Projectiles . | . . . . Explosions 87 | . 34 53 . Melee . | . . . . Knockbacks . | . . . . Impact . | . . . . Kinetic . | . . . . Secondary . | . . . . Self-Inflicted Damage 178 | 33 35 110 . Shots 6 | 1 2 3 . Rammed 1 | . 1 . . Targets Rammed 1 | . 1 . . Kicked . | . . . . Crushed . | . . . . Highest Temperature 185 | 48 185 . 46 Average Temperature 49 | 25 58 . 28 Received Heat Transfer 270 | . 138 78 54 Siege Activations . | . . . . Robots Corrupted 1 | . . 1 . Combat Hostiles 1 | . . 1 . Parts Fried 1 | . 1 . . Impact Corruptions . | . . . . Robots Melted . | . . . . Combat Hostiles . | . . . . Parts Melted . | . . . . Heat Transferred 436 | 225 50 161 . Parts Sabotaged . | . . . . Parts Stolen . | . . . . Parts Stripped . | . . . . Power Chain Reactions 4 | 1 2 1 . Alert | -11 -10 -10 -7 ------- Run | Yrd Mat Sub Rec Peak Influence 184 | 25 184 . 84 Initial 74 | . 16 . 74 Average 71 | 12 78 . 77 Maximum Alert Level . | . . . . Low Security (%) 100 | 100 100 . 100 Level 1 . | . . . . Level 2 . | . . . . Level 3 . | . . . . Level 4 . | . . . . Level 5 . | . . . . High Security . | . . . . Max Security . | . . . . Squads Dispatched 3 | . 3 . . Investigation 1 | . 1 . . Extermination . | . . . . Reinforcement 2 | . 2 . . Assault . | . . . . Garrison . | . . . . Intercept . | . . . . Searches Triggered . | . . . . Construction Impeded . | . . . . Haulers Reinforced . | . . . . Active Scanning Responses . | . . . . Cargo Convoy Interrupts . | . . . . Stealth | -11 -10 -10 -7 --------- Run | Yrd Mat Sub Rec Distress Signals . | . . . . Communications Jammed . | . . . . Distress Signals . | . . . . Times Spotted 30 | . 15 14 1 Peak Tracking Total 6 | . 6 4 1 Tactical Retreats 4 | . 1 3 . Traps | -11 -10 -10 -7 ------- Run | Yrd Mat Sub Rec Traps Triggered . | . . . . Indirectly . | . . . . Trap Hack Attempts . | . . . . Triggered . | . . . . Disarmed . | . . . . Reprogrammed . | . . . . Reused . | . . . . Traps Extracted . | . . . . Installed . | . . . . Triggered 2 | . . 2 . Most Traps Carried 1 | . . 1 1 Machines | -11 -10 -10 -7 ---------- Run | Yrd Mat Sub Rec Machines Disabled 6 | . 2 4 . Max in Single Turn 3 | . 2 3 . Machines Repaired . | . . . . Machines Dismantled . | . . . . Machines Sabotaged . | . . . . Overloaded Fab Kills . | . . . . Hacking | -11 -10 -10 -7 --------- Run | Yrd Mat Sub Rec Machines Accessed 1 | . 1 . . Terminals 1 | . 1 . . Fabricators . | . . . . Repair Stations . | . . . . Recycling Units . | . . . . Scanalyzers . | . . . . Garrison Access . | . . . . Total Hacks 3 | . 3 . . Successful 2 | . 2 . . Failed 1 | . 1 . . Catastrophic . | . . . . Database Lockouts . | . . . . Manual 3 | . 3 . . Terminals 3 | . 3 . . Fabricators . | . . . . Repair Stations . | . . . . Recycling Units . | . . . . Scanalyzers . | . . . . Garrison Access . | . . . . Terminal Hacks 2 | . 2 . . Robot Analysis 2 | . 2 . . Fabricator Hacks . | . . . . Repair Station Hacks . | . . . . Recycling Unit Hacks . | . . . . Scanalyzer . | . . . . Garrison Access Hacks . | . . . . Unauthorized Hacks . | . . . . Terminals . | . . . . Fabricators . | . . . . Repair Stations . | . . . . Recycling Units . | . . . . Scanalyzers . | . . . . Garrison Access . | . . . . Data Cores Recovered . | . . . . Used . | . . . . Hacking Detections 1 | . 1 . . Full Trace Events . | . . . . Feedback Events . | . . . . Feedback Blocked . | . . . . Robot Schematics Acquired . | . . . . Robots Built . | . . . . Authchips . | . . . . Time . | . . . . Total Robot Build Rating . | . . . . Part Schematics Acquired . | . . . . Parts Built . | . . . . Authchips . | . . . . Time . | . . . . Total Part Build Rating . | . . . . Parts Repaired . | . . . . Time . | . . . . Parts Recycled . | . . . . Recycled Matter . | . . . . Retrieved Matter . | . . . . Retrieved Components . | . . . . Parts Scanalyzed . | . . . . Part Schematics Acquired . | . . . . Parts Damaged . | . . . . Bothacking | -11 -10 -10 -7 ------------ Run | Yrd Mat Sub Rec Used RIF Installer . | . . . . Robots Hacked . | . . . . Non-combat . | . . . . Combat . | . . . . Robot Hacks Applied . | . . . . Relay Couplers Released . | . . . . Fabnet Peak Effective % . | . . . . Robots Rewired . | . . . . Allies Hacked . | . . . . Hacks Repelled . | . . . . Allies | -11 -10 -10 -7 -------- Run | Yrd Mat Sub Rec Total Allies . | . . . . Largest Group . | . . . . Highest-Rated Group . | . . . . Highest-Rated Ally . | . . . . Total Orders . | . . . . Ally Attacks . | . . . . Total Damage . | . . . . Kills . | . . . . Allies Corrupted . | . . . . Allies Melted . | . . . . Intel | -11 -10 -10 -7 ------- Run | Yrd Mat Sub Rec Robot Analysis Total 2 | . 2 . . Derelict Logs Recovered . | . . . . Drone Launches . | . . . . Drone Recoveries . | . . . . Exploration | -11 -10 -10 -7 ------------- Run | Yrd Mat Sub Rec Turns Passed 2262 | 145 1143 821 153 Spaces Moved 1056 | 63 542 397 54 Core 2 | 2 . . . Treads 1054 | 61 542 397 54 Legs . | . . . . Wheels . | . . . . Hover . | . . . . Flight . | . . . . Fastest Speed 50 | 50 160 160 160 Average Speed 159 | 156 160 160 160 Slowest Speed 160 | 160 160 160 160 Overloaded Moves . | . . . . Propulsion Burnouts . | . . . . Robots Hopped . | . . . . Cave-ins Triggered . | . . . . Exploration Rate (%) 29 | 4 63 32 20 Regions Visited 3 Branch Regions 2 Pre-discovered Areas . | . . . . Known Exits Taken . | . . . . Unknown Exits Taken 3 | 1 1 1 . Scrap Searched 3 | . . 3 . Spaces Dug 11 | . . 7 4 Terrain Destroyed 121 | . 18 98 5 Melee . | . . . . Projectile 13 | . . 8 5 AOE 108 | . 18 90 . Terrain Rammed . | . . . . Walls Destroyed . | . . . . Machines Disabled . | . . . . Actions | -11 -10 -10 -7 --------- Run | Yrd Mat Sub Rec Total 1469 | 89 768 511 101 Wait 259 | 6 180 40 33 Move 1053 | 62 541 396 54 Hop . | . . . . Pick Up 24 | 1 14 9 . Fast Attach 9 | 7 . 1 1 Attach 2 | . . 2 . Detach . | . . . . Swap 19 | 1 4 11 3 Drop 13 | . 2 10 1 Fire 89 | 12 26 42 9 Melee . | . . . . Ram . | . . . . Kick . | . . . . Crush 1 | . 1 . . Escape Stasis . | . . . . Rewire . | . . . . Trap . | . . . . Miscellaneous . | . . . . Route ------- -11/Scrapyard -10/Materials (discovered 3 exits: [*Mat] / [*Min] / [*Sub]) -10/Subcaves -7/Recycling History --------- Turn | Location | Event 2 | -11/Scrapyard | Met Revision 17 7 | -11/Scrapyard | Discovered new exit (range 15) 146 | -11/Scrapyard | Entered Materials 318 | -10/Materials | Build established: Mutant 369 | -10/Materials | Discovered new exit (range 8) 573 | -10/Materials | Discovered new exit (range 6) 753 | -10/Materials | Discovered new exit (range 16) 946 | -10/Materials | Derelicts attacked the area 1289 | -10/Materials | Entered Subcaves 1469 | -10/Subcaves | Core integrity fell below 50% 1623 | -10/Subcaves | Shifting Twisted Machinery released Sub. Shrapnel Launcher 1675 | -10/Subcaves | Ambushed by Subdweller buried in earth 2011 | -10/Subcaves | Discovered new exit (range 13) 2012 | -10/Subcaves | Core integrity fell below 20% 2043 | -10/Subcaves | Shifting Twisted Machinery released Mak. Light Armor Plating 2110 | -10/Subcaves | Entered Recycling 2263 | -7/Recycling | Destroyed by Y-54 Guardian with Flak Gun Last Messages --------------- 02011_ S-10 Pest destroyed. 02011_ Destroyed Flight Unit. 02011_ S-10 Pest destroyed. 02011_ EXIT=FOUND 02011_ Sub. Shrapnel Launcher destroyed. 02011_ Destroyed Sub. Shrapnel Launcher. 02011_ Machine disabled. Mak. Light Armor Plating falls loose from the Twisted Machinery. 02084_ Destroyed Autobeam. 02086_ Autobeam Turret destroyed. LOCATION=UNKNOWN GOAL=ESCAPE 02149_ U-05 Engineer builds a Wall. 02235_ Y-54 Guardian springs to life. 02245_ Dropped Med. Laser. 02245_ Acquired Adv. Assault Cannon. 02247_ R-06 Scavenger collects Med. Laser. 02252_ R-06 Scavenger destroyed. 02255_ Sub. Machine Gun shoots sparks and powers down. 02260_ U-05 Engineer builds a Wall. Map ----- +----------------------------------------------------+ | ???????????????????????????????????????????????? | | ???????????????????????????????????????????????? | | ???????????????????????????????????????????????? | | ???????????????????????????????????????????????? | | ???????????????????????????????????????????????? | | ???????????????????????????????????????????????? | | ???????????????????????????????????????????????? | | ???????????????????????????????????????????????? | | ???????????????????????????????????????????????? | | ???????????????????????????????????????????????? | | ???????????????????????????????????????????????? | | ???????????????????????????????????????????????? | | ???????????????????????????????????????????????? | | ???????????????????????????????????????????????? | | ????????????????????? ???????????????????????? | | ????????????????? ? ???????????????????????? | | ????????????????# ???????????????????????? | | ????????????????# ???????????????????????? | | ????????????????# #??????????????????????? | | ????????????????# #??????????????????????? | | ????????????????# #####+#####????????????? | | ????????????????# #! #????????????? | | ????????????????# # % #????????????? | | ????????????????# # /#????????????? | | ????????????????# #! % / #????????????? | | ??????????###+### #@ = #????????????? | | ????????? #%= #????????????? | | ????????????? #Y!% #????????????? | | ?????????????"" "" +%u%* #????????????? | | ??????????????" """" ###########????????????? | | ??????????????? """" #??##??????????????????? | | ??????????????? """" #####??????????????????? | | ?????????????" """ #??????????????????? | | ????????????"" """ #??????????????????? | | ???????????? #??????????????????? | | ??????????? #??????????????????? | | ?????????? #??????????????????? | | ???????????############# ##??????????????????? | | ??????????????##?###???# #??????????????????? | | ??????????????# ######## ##??????????????????? | | ??????????????# # #???????????????????? | | ??????????????# + #???????????????????? | | ??????????????# # #???????????????????? | | ?????????????## # #???????????????????? | | ?????????????# # #???####????????????? | | ?????????????## # #?? #????????????? | | ??????????????# # #?? ""#????????????? | | ??????????????# # #? T"#????????????? | | ??????????????# # #? ""#????????????? | | ??????????????########## # #????????????? | +----------------------------------------------------+ Best States ------------- Heat Dissipation 25 Energy Generation 10 Energy Capacity 250 Matter Stores 300 Matter Capacity 300 Sight Range 16 Terrain Scan Density 10 Evasion (%) 40 Recoil Reduction 2 Item Schematics ----------------- None Robot Schematics ------------------ None Fabricated ------------ Nothing Alien Tech Used ----------------- None Achievements -------------- None Challenges ------------ None Game ------ Seed BiocellHypercooledGun Manual? 0 Play Time 00:13:34 Cumulative 242.6 hours Start 2024.08.14 @ 18:42:55 End 2024.08.14 @ 18:55:13 Sessions 1 Manual Loads 0 Difficulty Rogue Special Mode None Game No. 122 Rogue 122 Adventurer 0 Explorer 0 Win Type - Total 8 Types 4/1/3/0/0/0/0/0/0 Lore% 74 Gallery% 84 Achievement% 69 Wizard Run 0 Options --------- Layout 0 ASCII 0 Keyboard 0 Movement Mouse Keybinds 0 Fullscreen 2 Font 18/SmallcapsGlow Map View 76x50 Zoom Use 0% Tactical HUD 1 Map Filters NONE Filters NONE Steam 1 RUN: 2712323b-432b-4806-a7a4-2c903d836559